bitfinex/quotes_BTCUSD_20250320
["timestamp","ask_amount","ask_price","bid_price","bid_amount"]
[1742486633191,0.3001693,84939.0,84938.0,0.0030006]
[1742486633389,1.68071333,84939.0,84938.0,0.0030006]
[1742486633592,1.24029633,84939.0,84938.0,0.0030006]
[1742486633755,0.98808533,84939.0,84938.0,0.0030006]
[1742486634112,0.5474053,84939.0,84938.0,0.0030006]
[1742486634534,1.32739133,84939.0,84938.0,0.0030006]
[1742486634735,1.16226133,84939.0,84938.0,0.0030006]
[1742486634957,0.97370833,84939.0,84938.0,0.0030006]
[1742486635370,0.91698833,84939.0,84938.0,0.0030006]
[1742486635911,1.27258333,84939.0,84938.0,0.0030006]
[1742486636103,1.29104852,84939.0,84938.0,6e-07]
[1742486636307,0.68544552,84939.0,84938.0,0.0030006]
[1742486636644,1.27195352,84939.0,84938.0,0.0030006]
[1742486636862,1.27195352,84939.0,84938.0,6e-07]
[1742486637070,0.68544552,84939.0,84938.0,6e-07]
[1742486637453,0.56587049,84939.0,84938.0,6e-07]
[1742486638019,0.68544552,84939.0,84938.0,6e-07]
[1742486638226,0.68544552,84939.0,84938.0,0.0117746]
[1742486638653,1.81097252,84939.0,84938.0,0.0117746]
[1742486639003,2.3831884,84939.0,84938.0,6e-07]
[1742486639245,0.55227,84927.0,84926.0,0.0003386]
[1742486639418,5.83166588,84927.0,84926.0,0.0003386]
[1742486639621,5.85666588,84927.0,84926.0,6e-07]
[1742486639845,0.93396588,84927.0,84926.0,6e-07]
[1742486640052,0.54734,84903.0,84891.0,0.0003382]
[1742486640253,1.07501503,84903.0,84891.0,0.0003382]
[1742486640406,5.45909688,84903.0,84902.0,2e-07]
[1742486640610,1.17015588,84903.0,84902.0,2e-07]
[1742486641240,1.17026839,84903.0,84902.0,2e-07]
[1742486641441,1.19526839,84903.0,84902.0,2e-07]
[1742486643257,0.552381,84889.0,84888.0,6e-07]
[1742486643479,0.87821688,84889.0,84888.0,6e-07]
[1742486643700,1.39031688,84889.0,84888.0,6e-07]
[1742486644118,1.4226214,84889.0,84888.0,6e-07]
[1742486644324,2.1073614,84889.0,84888.0,6e-07]
[1742486644809,2.13573997,84889.0,84888.0,6e-07]
[1742486645013,0.547474,84857.0,84855.0,0.0003386]
[1742486645219,0.66704903,84857.0,84855.0,0.0003386]
[1742486645421,0.011784,84856.0,84855.0,0.0003386]
[1742486645690,1.33869303,84856.0,84855.0,0.0003386]
[1742486645892,1.76133388,84856.0,84855.0,0.0003386]
[1742486646261,1.79369704,84856.0,84855.0,0.0003386]
[1742486646680,1.79369704,84856.0,84855.0,0.0033386]
[1742486646860,1.96739561,84856.0,84855.0,0.0033386]
[1742486647059,1.96739561,84856.0,84855.0,0.0003386]
[1742486647258,0.56702085,84855.0,84854.0,2e-07]
[1742486647457,0.33132485,84854.0,84853.0,8e-07]
[1742486647774,0.45089988,84854.0,84853.0,8e-07]
[1742486648976,0.547518,84842.0,84841.0,0.0013386]
[1742486649136,1.08973388,84842.0,84841.0,0.0013386]
[1742486649370,2.73048388,84842.0,84841.0,0.0013386]
[1742486649733,2.74897032,84842.0,84841.0,0.0013386]
[1742486650071,2.54977932,84842.0,84841.0,0.0013386]
[1742486650277,1.39049547,84842.0,84841.0,0.0013386]
[1742486651359,1.09367947,84842.0,84841.0,0.0013386]
[1742486651527,0.3,84842.0,84841.0,0.0013386]
[1742486651688,0.26067628,84851.0,84849.0,0.23571]
[1742486651896,0.26067628,84851.0,84847.0,0.011785]
[1742486651897,0.26067628,84859.0,84854.0,0.235698]
[1742486652515,0.3,84858.0,84854.0,0.14536]
[1742486652708,0.3,84858.0,84854.0,0.14436]
[1742486652919,0.30005864,84856.0,84854.0,0.14436]
[1742486653422,5.864e-05,84856.0,84854.0,0.383057]
[1742486653621,5.864e-05,84856.0,84855.0,0.237044]
[1742486654320,5.864e-05,84856.0,84855.0,0.091684]
[1742486654432,5.864e-05,84856.0,84855.0,1.72526]
[1742486654645,0.54753564,84856.0,84855.0,1.64536]
[1742486655045,0.30005864,84856.0,84855.0,1.64536]
[1742486655971,0.30005864,84856.0,84838.0,0.14536]
[1742486655972,0.3,84846.0,84838.0,0.14536]
[1742486656177,0.3,84846.0,84839.0,0.011787]
[1742486656395,0.3,84846.0,84838.0,0.14536]
[1742486656596,0.3,84850.0,84838.0,0.14536]
[1742486656852,0.3,84848.0,84838.0,0.14536]
[1742486657060,0.41957503,84848.0,84838.0,0.14536]
[1742486657264,0.11957503,84848.0,84838.0,0.14536]
[1742486657489,0.011786,84845.0,84838.0,0.14536]
[1742486657719,0.3,84843.0,84838.0,0.381102]
[1742486657924,0.3,84843.0,84842.0,0.011786]
[1742486658265,0.3,84843.0,84841.0,0.0073386]
[1742486659167,0.01848422,84847.0,84841.0,0.0013386]
[1742486659499,0.01848422,84847.0,84841.0,0.0063386]
[1742486659899,0.01848422,84847.0,84841.0,0.0013386]
[1742486660096,0.11957503,84846.0,84841.0,0.0013386]
[1742486660297,0.01848422,84847.0,84841.0,0.0013386]
[1742486660899,0.01848422,84847.0,84841.0,0.0063386]
[1742486662342,0.011786,84842.0,84841.0,0.0013386]
[1742486662501,0.011786,84842.0,84841.0,0.0053386]
[1742486662502,0.547518,84842.0,84841.0,0.0053386]
[1742486663241,0.547518,84842.0,84841.0,0.0013386]
[1742486663450,0.3,84842.0,84841.0,0.0053386]
[1742486663651,0.3,84842.0,84841.0,0.2528596]
[1742486664073,0.3,84842.0,84841.0,0.2488596]
[1742486664282,0.3,84842.0,84841.0,0.3941796]
[1742486664492,5.864e-05,84856.0,84855.0,0.235696]
[1742486664692,5.864e-05,84856.0,84855.0,0.3928]
[1742486665277,5.864e-05,84856.0,84855.0,1.8928]
[1742486666541,5.864e-05,84856.0,84855.0,2.01237503]
[1742486666752,5.864e-05,84856.0,84855.0,2.09097503]
[1742486667471,5.864e-05,84856.0,84855.0,2.09697503]
[1742486667983,5.864e-05,84856.0,84855.0,2.09097503]
[1742486668138,6.4e-07,84856.0,84855.0,2.09697503]
[1742486668482,0.01847882,84875.0,84855.0,2.09697503]
[1742486668483,0.01847882,84875.0,84874.0,0.324025]
[1742486668682,0.01847882,84875.0,84874.0,1.14996003]
[1742486668867,0.01847882,84875.0,84874.0,0.808465]
[1742486669108,0.3,84873.0,84864.0,0.14532]
[1742486669244,0.535652,84871.0,84865.0,0.235668]
[1742486669442,0.3,84871.0,84865.0,0.235668]
[1742486669642,0.3,84871.0,84869.0,0.235657]
[1742486669984,0.3,84871.0,84870.0,0.011782]
[1742486670187,0.3,84871.0,84869.0,0.235657]
[1742486670391,0.3,84873.0,84865.0,0.011783]
[1742486670593,0.3,84873.0,84869.0,0.235657]
[1742486671227,0.3,84873.0,84871.0,0.235651]
[1742486671795,0.3,84873.0,84872.0,0.14528]
[1742486671796,0.547429,84873.0,84872.0,0.14528]
[1742486672009,0.3,84873.0,84872.0,0.14528]
[1742486672216,0.235619,84883.0,84876.0,0.011781]
[1742486672417,0.3,84879.0,84874.0,0.247425]
[1742486672896,0.3,84879.0,84878.0,0.235632]
[1742486673121,0.011779,84895.0,84878.0,0.235632]
[1742486673122,0.247374,84892.0,84882.0,0.235619]
[1742486673241,0.0003386,84903.0,84885.0,0.235612]
[1742486673445,0.0003386,84903.0,84902.0,0.323243]
[1742486673446,6e-07,84903.0,84902.0,0.323243]
[1742486673689,3e-07,84939.0,84938.0,0.247238]
[1742486673892,0.0003384,84965.0,84964.0,0.091269]
[1742486674137,0.28701628,84978.0,84976.0,0.23536]
[1742486674341,0.0003382,84996.0,84987.0,0.247096]
[1742486674479,0.0003382,84996.0,84995.0,0.235307]
[1742486674674,0.005,85015.0,85003.0,0.235285]
[1742486674871,0.4081,85018.0,85009.0,0.011763]
[1742486674872,0.00059772,85010.0,85009.0,0.011763]
[1742486675067,0.00059772,85010.0,85009.0,1.5]
[1742486675272,0.00059772,85010.0,85009.0,1.64524]
[1742486675485,0.00059772,85010.0,85009.0,1.657003]
[1742486675744,0.00072281,85010.0,85009.0,1.657003]
[1742486675907,0.00072281,85010.0,85009.0,1.66793283]
[1742486676254,0.00072281,85010.0,85009.0,1.52269283]
[1742486676454,0.00072281,85010.0,85009.0,1.63050486]
[1742486676874,0.00072281,85010.0,85009.0,1.65612983]
[1742486677081,0.00072281,85010.0,85009.0,1.66789283]
[1742486677292,0.00072281,85010.0,85009.0,1.51092983]
[1742486677492,0.00072281,85010.0,85009.0,1.66112983]
[1742486677697,0.0191695,85010.0,85009.0,1.66112983]
[1742486677904,0.0191695,85010.0,85009.0,1.661963]
[1742486678108,0.00072281,85010.0,85009.0,1.656963]
[1742486678339,0.00072281,85010.0,85009.0,1.661963]
[1742486678551,0.23598881,85010.0,85009.0,1e-06]
[1742486678767,0.23598881,85010.0,84966.0,0.005]
[1742486678768,0.54716,84965.0,84964.0,0.005]
[1742486678973,0.54716,84965.0,84962.0,0.1]
[1742486678974,0.235434,84950.0,84942.0,0.235452]
[1742486679181,0.01177,84960.0,84959.0,0.235407]
[1742486679182,0.21109062,84960.0,84959.0,0.235407]
[1742486679401,0.3,84948.0,84901.0,0.001]
[1742486679617,0.1286,84960.0,84937.0,0.011773]
[1742486679824,0.1286,84960.0,84914.0,0.00235516]
[1742486679825,0.011771,84953.0,84928.0,0.0023543]
[1742486680050,0.21109062,84930.0,84929.0,0.011774]
[1742486680249,0.3,84938.0,84937.0,0.235468]
[1742486680461,0.3,84949.0,84948.0,0.011771]
[1742486680661,0.3,84949.0,84947.0,0.235438]
[1742486680902,0.3,84949.0,84947.0,0.24721]
[1742486681108,0.3,84968.0,84965.0,0.23539]
[1742486681312,0.3,84966.0,84958.0,0.14728]
[1742486681539,0.3,84966.0,84959.0,1.5]
[1742486681540,0.3,84964.0,84959.0,1.5]
[1742486681754,0.3,84962.0,84959.0,1.5]
[1742486681996,0.11957503,84961.0,84959.0,1.5]
[1742486682432,0.11957503,84961.0,84953.0,0.14712]
[1742486682433,0.01177,84959.0,84953.0,0.14712]
[1742486682661,0.11957503,84958.0,84938.0,0.011773]
[1742486682886,0.3,84944.0,84940.0,0.235458]
[1742486683087,0.3,84944.0,84942.0,0.235454]
[1742486683215,0.3,84944.0,84938.0,0.14708]
[1742486683416,0.3,84944.0,84943.0,0.235452]
[1742486684019,0.31846215,84944.0,84943.0,0.235452]
[1742486684242,0.31846215,84944.0,84939.0,1.5]
[1742486684444,0.3,84942.0,84940.0,0.23546]
[1742486684693,0.31846215,84944.0,84943.0,0.235452]
[1742486685192,0.71862845,84944.0,84939.0,1.5]
[1742486685398,0.3,84936.0,84935.0,0.00012482]
[1742486685599,0.62057203,84936.0,84935.0,0.00012482]
[1742486685802,0.86781603,84936.0,84935.0,0.00012482]
[1742486686747,0.88628278,84936.0,84935.0,0.00012482]
[1742486687076,0.44981478,84936.0,84935.0,0.00012482]
[1742486687283,0.64458778,84936.0,84935.0,0.00012482]
[1742486687875,0.64058778,84936.0,84935.0,0.00012482]
[1742486688073,0.81004863,84936.0,84935.0,0.00012482]
[1742486688286,0.54734,84903.0,84902.0,0.14692]
[1742486688491,0.54734,84903.0,84902.0,0.14733632]
[1742486688492,0.3,84903.0,84902.0,0.14733632]
[1742486688903,0.3,84903.0,84902.0,1.50041632]
[1742486689527,0.31847107,84903.0,84902.0,0.00041632]
[1742486690539,0.3,84903.0,84902.0,0.01619432]
[1742486690743,0.3,84919.0,84912.0,0.011776]
[1742486690957,0.42218124,84930.0,84924.0,0.235502]
[1742486691264,0.4081,84936.0,84927.0,0.011774]
[1742486691399,0.011773,84936.0,84930.0,0.235487]
[1742486691609,0.343249,84935.0,84929.0,0.235488]
[1742486691813,0.247248,84935.0,84928.0,0.235488]
[1742486692015,0.547267,84928.0,84927.0,0.14668]
[1742486692215,0.66684203,84928.0,84927.0,0.14668]
[1742486692421,0.3,84924.0,84919.0,0.14664]
[1742486692620,0.3,84924.0,84920.0,0.235513]
[1742486692970,0.3,84924.0,84923.0,0.235507]
[1742486693520,0.3,84936.0,84927.0,0.004]
[1742486693708,0.235439,84948.0,84931.0,0.011774]
[1742486694078,0.235439,84948.0,84928.0,0.011774]
[1742486694079,0.247244,84937.0,84932.0,0.1466]
[1742486694266,0.01846524,84934.0,84932.0,0.1466]
[1742486694472,0.311773,84937.0,84932.0,0.1466]
[1742486694677,0.24725,84935.0,84932.0,0.1466]
[1742486694877,0.3,84925.0,84924.0,0.14648]
[1742486695089,0.3,84925.0,84921.0,0.235511]
[1742486695261,0.3,84921.0,84920.0,0.14648]
[1742486695474,0.3,84920.0,84913.0,0.00041632]
[1742486695640,0.3,84920.0,84918.0,0.23552]
[1742486695837,0.3,84920.0,84919.0,0.011775]
[1742486696445,0.01846687,84921.0,84920.0,0.235515]
[1742486697122,0.01846687,84921.0,84920.0,0.25129]
[1742486697334,0.01846687,84921.0,84920.0,1.75129]
[1742486698326,0.01846687,84921.0,84920.0,1.739515]
[1742486698531,0.01846687,84921.0,84920.0,1.65012]
[1742486699132,0.26575487,84921.0,84920.0,1.65012]
[1742486699341,0.01846687,84921.0,84920.0,1.515775]
[1742486702449,0.3,84931.0,84930.0,0.247262]
[1742486702855,0.535466,84938.0,84933.0,0.235478]
[1742486703054,0.3,84938.0,84934.0,0.235474]
[1742486703379,0.235437,84949.0,84941.0,0.011772]
[1742486703626,0.011773,84933.0,84920.0,0.0121132]
[1742486703824,0.3,84931.0,84930.0,0.001]
[1742486704280,0.3,84931.0,84929.0,0.23549]
[1742486704489,0.3,84931.0,84930.0,0.14564]
[1742486705005,0.311774,84931.0,84930.0,0.14564]
[1742486705422,0.01846508,84931.0,84930.0,0.14564]
[1742486705705,0.01846508,84931.0,84920.0,0.0003382]
[1742486705905,0.547288,84921.0,84920.0,0.0003382]
[1742486706055,1.56042203,84921.0,84920.0,0.0003382]
[1742486706264,1.12241703,84921.0,84920.0,0.0003382]
[1742486706819,1.14088703,84921.0,84920.0,0.0003382]
[1742486706990,1.14088703,84921.0,84920.0,0.0013382]
[1742486707916,1.54898703,84921.0,84920.0,0.0013382]
[1742486708139,1.54898703,84921.0,84901.0,0.001]
[1742486708140,0.547343,84902.0,84901.0,0.001]
[1742486708315,2.57643803,84902.0,84901.0,0.00141632]
[1742486708624,0.933187,84902.0,84901.0,0.00141632]
[1742486708836,1.18053,84902.0,84901.0,0.00141632]
[1742486708987,1.149833,84902.0,84901.0,0.00141632]
[1742486709185,1.16830575,84902.0,84901.0,0.00141632]
[1742486709843,1.28788078,84902.0,84901.0,0.00141632]
[1742486710061,1.01014578,84902.0,84901.0,0.00141632]
[1742486710264,0.91408078,84902.0,84901.0,0.00141632]
[1742486711156,0.68539078,84902.0,84901.0,0.00141632]
[1742486711352,2.49036078,84902.0,84901.0,3.2e-07]
[1742486711555,0.547384,84888.0,84887.0,1.5]
[1742486711733,0.748559,84888.0,84887.0,1.5]
[1742486712258,0.31178,84887.0,84873.0,0.235644]
[1742486712453,0.31178,84887.0,84873.0,0.247426]
[1742486712785,0.31178,84887.0,84877.0,0.235634]
[1742486712953,0.31178,84887.0,84875.0,0.011782]
[1742486713562,0.43135503,84887.0,84873.0,0.1452]
[1742486713785,0.68254503,84887.0,84873.0,0.1452]
[1742486714006,0.68254503,84887.0,84871.0,0.001]
[1742486714348,0.68254503,84887.0,84871.0,0.236651]
[1742486714768,0.68254503,84887.0,84871.0,0.001]
[1742486714971,0.54743,84872.0,84871.0,0.001]
[1742486715172,0.947362,84872.0,84871.0,0.001]
[1742486715370,0.311782,84872.0,84871.0,0.001]
[1742486715998,0.33026041,84872.0,84871.0,0.001]
[1742486716257,0.60594744,84872.0,84871.0,0.00112492]
[1742486717190,1.01404744,84872.0,84871.0,0.00112492]
[1742486717528,1.01404744,84872.0,84871.0,0.00312492]
[1742486717959,1.01404744,84872.0,84871.0,9.2e-07]
[1742486718140,0.547474,84857.0,84856.0,0.0003386]
[1742486718340,0.66704903,84857.0,84856.0,0.00046355]
[1742486718533,1.64230003,84857.0,84856.0,0.00046355]
[1742486718779,1.56208003,84857.0,84856.0,0.00046355]
[1742486718980,1.14974303,84857.0,84856.0,0.00046355]
[1742486719300,1.16822494,84857.0,84856.0,0.00046355]
[1742486720464,1.04864991,84857.0,84856.0,0.00046355]
[1742486721082,1.05064991,84857.0,84856.0,0.00046355]
[1742486721299,0.55617191,84857.0,84856.0,0.00046355]
[1742486721499,0.56595591,84857.0,84856.0,0.00046355]
[1742486721919,0.3,84848.0,84844.0,0.37744475]
[1742486722107,0.3,84848.0,84846.0,0.23572]
[1742486722639,0.3184818,84848.0,84845.0,0.00012495]
[1742486722792,0.5541988,84848.0,84845.0,0.00012495]
[1742486722994,0.235721,84846.0,84845.0,0.00012495]
[1742486723281,0.3,84846.0,84845.0,0.00012495]
[1742486724197,0.535721,84846.0,84845.0,0.00012495]
[1742486724397,0.547507,84846.0,84845.0,0.00012495]
[1742486724993,0.547507,84846.0,84845.0,0.00212495]
[1742486725200,0.547507,84846.0,84845.0,0.00112495]
[1742486725549,0.547507,84846.0,84845.0,0.00212495]
[1742486726170,0.95563,84846.0,84845.0,0.00212495]
[1742486726282,0.67978003,84846.0,84845.0,0.23784795]
[1742486726488,0.535721,84846.0,84845.0,0.00212495]
[1742486726688,0.547507,84846.0,84845.0,0.00212495]
[1742486727794,0.3,84846.0,84845.0,0.00212495]
[1742486728020,0.3,84846.0,84845.0,0.23784795]
[1742486729443,0.3,84846.0,84845.0,0.00212495]
[1742486730154,0.3,84846.0,84845.0,0.23784795]
[1742486730375,0.3,84846.0,84845.0,0.00212495]
[1742486730564,1.222097,84846.0,84845.0,0.00212495]
[1742486730698,0.760836,84846.0,84845.0,0.00212495]
[1742486731532,1.55336606,84846.0,84845.0,0.00212495]
[1742486731768,1.56790691,84846.0,84845.0,0.00212495]
[1742486732183,1.56790691,84846.0,84827.0,0.0001693]
[1742486732184,0.55029485,84834.0,84833.0,1.5e-07]
[1742486732393,1.93167688,84834.0,84827.0,9e-08]
[1742486732596,0.547588,84818.0,84817.0,2.9e-07]
[1742486732793,0.81244303,84818.0,84817.0,2.9e-07]
[1742486732999,0.81553001,84818.0,84817.0,2.9e-07]
[1742486733378,0.83007086,84818.0,84817.0,2.9e-07]
[1742486733580,4.66655885,84817.0,84789.0,0.1038207]
[1742486733803,0.56716085,84807.0,84806.0,2e-07]
[1742486734004,1.28323471,84807.0,84806.0,2e-07]
[1742486734234,1.28126799,84807.0,84806.0,2e-07]
[1742486734761,1.33403839,84807.0,84806.0,2e-07]
[1742486734892,0.552635,84802.0,84801.0,8e-07]
[1742486735093,0.56718985,84797.0,84796.0,5.8e-07]
[1742486735316,0.247693,84782.0,84771.0,0.0003388]
[1742486735520,1.71392103,84782.0,84781.0,0.0011251]
[1742486735720,0.30303328,84782.0,84781.0,0.2370261]
[1742486735923,0.30303328,84782.0,84781.0,0.2488211]
[1742486736123,0.32153075,84782.0,84781.0,0.2488211]
[1742486736331,0.31849747,84782.0,84781.0,0.2488211]
[1742486736535,0.55720946,84782.0,84781.0,0.0011251]
[1742486736699,0.32231046,84782.0,84781.0,1.5011251]
[1742486736889,0.32231046,84782.0,84781.0,1.7370261]
[1742486737297,0.31949747,84782.0,84781.0,1.7370261]
[1742486737507,0.32131046,84782.0,84781.0,1.7370261]
[1742486738145,0.32131046,84782.0,84781.0,1.5011251]
[1742486738608,0.45267949,84782.0,84781.0,1.5011251]
[1742486738827,0.45267949,84782.0,84781.0,0.0011251]
[1742486739027,0.82125649,84782.0,84781.0,0.0011251]
[1742486739231,0.76164149,84782.0,84781.0,0.0051251]
[1742486739432,0.32131046,84782.0,84781.0,0.0011251]
[1742486739691,0.32131046,84782.0,84781.0,0.2370261]
[1742486739855,0.32131046,84782.0,84781.0,0.0041251]
[1742486740063,0.32131046,84782.0,84781.0,0.0011251]
[1742486741936,0.33310446,84782.0,84781.0,0.0011251]
[1742486742318,0.45267949,84782.0,84781.0,0.0011251]
[1742486742454,1.37910349,84782.0,84781.0,0.0011251]
[1742486742660,0.87665802,84782.0,84781.0,0.0011251]
[1742486742869,0.68140802,84782.0,84781.0,0.0011251]
[1742486743075,0.65050202,84782.0,84781.0,0.0011251]
[1742486743277,0.60845502,84782.0,84781.0,0.0031251]
[1742486743639,0.57860702,84782.0,84781.0,0.0011251]
[1742486744405,0.53642702,84782.0,84781.0,0.0011251]
[1742486744597,0.30281299,84782.0,84781.0,0.0011251]
[1742486745080,0.53871199,84782.0,84781.0,0.0011251]
[1742486745281,0.55050599,84782.0,84781.0,0.0011251]
[1742486745914,0.53871199,84782.0,84781.0,0.0011251]
[1742486746122,0.55050599,84782.0,84781.0,0.0011251]
[1742486746945,0.56900352,84782.0,84781.0,0.0011251]
[1742486748090,1.56476555,84782.0,84781.0,0.0011251]
[1742486748288,0.88028355,84782.0,84781.0,0.0011251]
[1742486748492,0.82088455,84782.0,84781.0,0.0011251]
[1742486749337,0.82088455,84782.0,84771.0,0.0003388]
[1742486749338,0.247722,84772.0,84771.0,0.0003388]
[1742486749513,0.247722,84772.0,84760.0,0.0001694]
[1742486749514,0.547754,84761.0,84760.0,0.0001694]
[1742486749721,1.89789703,84761.0,84760.0,0.0001694]
[1742486749956,1.72974003,84761.0,84760.0,0.0002234]
[1742486750160,0.90539116,84761.0,84760.0,0.0002234]
[1742486750376,0.55056313,84761.0,84760.0,0.0002234]
[1742486750691,0.56906671,84761.0,84760.0,0.0002234]
[1742486751149,0.32131271,84761.0,84760.0,0.2361834]
[1742486751365,0.00380913,84761.0,84760.0,0.0002234]
[1742486751491,0.23876613,84761.0,84760.0,0.0002234]
[1742486751698,0.23976613,84761.0,84760.0,0.0002234]
[1742486752081,0.00380913,84761.0,84760.0,0.0002234]
[1742486752257,0.00280913,84761.0,84760.0,0.0002234]
[1742486752466,0.23876613,84761.0,84760.0,0.0002234]
[1742486752983,0.25256313,84761.0,84760.0,0.0002234]
[1742486753397,0.25056313,84761.0,84760.0,0.0002234]
[1742486753539,0.25056313,84761.0,84760.0,0.0022234]
[1742486753737,0.37013816,84761.0,84760.0,0.0022234]
[1742486753967,0.79021816,84761.0,84760.0,0.0002234]
[1742486754143,0.80872134,84761.0,84760.0,0.0002234]
[1742486756975,0.84197834,84761.0,84760.0,0.0002234]
[1742486757180,0.44215431,84761.0,84760.0,0.0002234]
[1742486757375,0.38545431,84761.0,84760.0,0.0002234]
[1742486758189,0.38645431,84761.0,84760.0,0.0002234]
[1742486758402,0.80602934,84761.0,84760.0,0.0002234]
[1742486758616,0.80702934,84761.0,84760.0,0.0002234]
[1742486759022,0.80602934,84761.0,84760.0,0.0002234]
[1742486760008,0.80502934,84761.0,84760.0,0.0002234]
[1742486760169,0.547758,84760.0,84759.0,8e-07]
[1742486760367,1.78476519,84760.0,84759.0,8e-07]
[1742486760585,0.67007919,84760.0,84759.0,8e-07]
[1742486761692,0.67207919,84760.0,84759.0,8e-07]
[1742486762025,0.67307919,84760.0,84759.0,8e-07]
[1742486762453,0.67207919,84760.0,84759.0,8e-07]
[1742486762845,0.67107919,84760.0,84759.0,8e-07]
[1742486763043,0.68562004,84760.0,84759.0,8e-07]
[1742486763245,0.68662004,84760.0,84759.0,8e-07]
[1742486763511,0.68562004,84760.0,84759.0,8e-07]
[1742486763712,0.67107919,84760.0,84759.0,8e-07]
[1742486764275,0.67107919,84760.0,84751.0,8e-07]
[1742486764276,0.247781,84752.0,84751.0,8e-07]
[1742486764479,1.08999688,84752.0,84751.0,8e-07]
[1742486764678,1.07819091,84752.0,84751.0,8e-07]
[1742486764913,1.26137033,84752.0,84751.0,8e-07]
[1742486765456,1.38094536,84752.0,84751.0,8e-07]
[1742486765666,1.26137033,84752.0,84751.0,8e-07]
[1742486766067,1.26637033,84752.0,84751.0,8e-07]
[1742486767056,1.27137033,84752.0,84751.0,8e-07]
[1742486767310,1.26637033,84752.0,84751.0,8e-07]
[1742486767477,0.247836,84733.0,84732.0,0.0001694]
[1742486767682,0.652224,84733.0,84732.0,0.00029404]
[1742486767908,0.75599842,84733.0,84732.0,0.00029404]
[1742486768344,0.57450817,84733.0,84732.0,0.00029404]
[1742486768544,0.58630917,84733.0,84732.0,0.00029404]
[1742486768969,0.58730917,84733.0,84732.0,0.00029404]
[1742486769888,0.58830917,84733.0,84732.0,0.00029404]
[1742486770324,0.7078842,84733.0,84732.0,0.00029404]
[1742486770725,0.48393545,84733.0,84732.0,0.00029404]
[1742486770931,0.51642742,84733.0,84732.0,0.00029404]
[1742486771155,0.54075842,84733.0,84732.0,0.00029404]
[1742486771355,0.31652442,84733.0,84732.0,0.00029404]
[1742486771534,0.55255942,84733.0,84732.0,0.00029404]
[1742486771736,0.55155942,84733.0,84732.0,0.00029404]
[1742486771962,0.67113445,84733.0,84732.0,0.00029404]
[1742486772135,1.24077445,84733.0,84732.0,0.00029404]
[1742486772343,1.13846045,84733.0,84732.0,0.00029404]
[1742486773011,1.13746045,84733.0,84732.0,0.00029404]
[1742486773213,0.99972145,84733.0,84732.0,0.00029404]
[1742486773553,0.99872145,84733.0,84732.0,0.00029404]
[1742486774400,0.99872145,84733.0,84732.0,4e-08]
[1742486774401,1.53722145,84733.0,84732.0,4e-08]
[1742486774607,1.35407445,84733.0,84732.0,4e-08]
[1742486774807,1.20863445,84733.0,84732.0,4e-08]
[1742486775016,1.07823445,84733.0,84732.0,4e-08]
[1742486775428,1.09674586,84733.0,84732.0,4e-08]
[1742486776638,1.09874586,84733.0,84732.0,4e-08]
[1742486776899,1.09874586,84733.0,84732.0,0.00016954]
[1742486777510,1.67734486,84733.0,84732.0,0.00016954]
[1742486777887,1.65420386,84733.0,84732.0,0.00016954]
[1742486778118,1.65020386,84733.0,84732.0,0.00016954]
[1742486778633,1.65120386,84733.0,84732.0,0.00016954]
[1742486779554,1.65020386,84733.0,84732.0,0.00016954]
[1742486779974,1.65320386,84733.0,84732.0,0.00016954]
[1742486780767,1.65520386,84733.0,84732.0,0.00016954]
[1742486781498,1.10174586,84733.0,84732.0,0.00016954]
[1742486781722,3.08044486,84733.0,84732.0,0.00016954]
[1742486781926,2.70745386,84733.0,84732.0,0.00016954]
[1742486782535,2.70545386,84733.0,84732.0,0.00016954]
[1742486782737,2.85089386,84733.0,84732.0,0.00016954]
[1742486783307,0.547877,84719.0,84718.0,0.00699333]
[1742486783551,0.96163003,84719.0,84718.0,0.00699333]
[1742486783708,0.96426137,84719.0,84718.0,0.00699333]
[1742486784309,0.98277351,84719.0,84718.0,0.00699333]
[1742486785000,0.96426137,84719.0,84718.0,0.00699333]
[1742486785407,0.86190837,84719.0,84718.0,0.00699333]
[1742486785764,0.67008337,84719.0,84718.0,0.00699333]
[1742486785975,0.86796937,84719.0,84718.0,0.00699333]
[1742486786699,0.92144437,84719.0,84718.0,0.00699333]
[1742486786900,0.55150834,84719.0,84718.0,0.00699333]
[1742486787082,0.55350834,84719.0,84718.0,0.00699333]
[1742486787283,1.29626737,84719.0,84718.0,0.00699333]
[1742486787508,0.67308337,84719.0,84718.0,0.00699333]
[1742486787909,0.67108337,84719.0,84718.0,0.00699333]
[1742486788122,0.68859508,84719.0,84718.0,0.00699333]
[1742486788319,0.56902005,84719.0,84718.0,0.00716283]
[1742486788642,0.55821705,84719.0,84718.0,0.00716283]
[1742486788971,0.32214305,84719.0,84718.0,0.00716283]
[1742486789173,0.02314305,84719.0,84718.0,0.40048283]
[1742486789347,0.00463134,84719.0,84718.0,0.40048283]
[1742486789644,0.001,84719.0,84718.0,0.40048283]
[1742486789857,0.01850927,84720.0,84719.0,0.247877]
[1742486790203,0.01850927,84720.0,84719.0,0.36745203]
[1742486790404,0.23234768,84730.0,84729.0,0.247848]
[1742486790629,0.00046373,84733.0,84732.0,0.247839]
[1742486790831,0.00046373,84733.0,84732.0,0.381478]
[1742486791040,0.00046373,84733.0,84732.0,0.393279]
[1742486792020,0.00046373,84733.0,84732.0,0.381478]
[1742486792216,0.53649873,84733.0,84732.0,0.14544]
[1742486792442,0.30046373,84733.0,84732.0,0.14544]
[1742486792854,0.3,84732.0,84730.0,0.236043]
[1742486793412,0.31850881,84732.0,84730.0,0.236043]
[1742486793571,0.31850881,84732.0,84731.0,0.23604]
[1742486794329,0.02098468,84732.0,84731.0,0.23604]
[1742486794734,0.02098468,84732.0,84731.0,0.247842]
[1742486795834,0.00046373,84733.0,84732.0,0.247839]
[1742486796036,0.00046373,84733.0,84732.0,0.51195488]
[1742486796634,0.00046373,84733.0,84732.0,2.01195488]
[1742486796839,0.00046373,84733.0,84732.0,1.76195488]
[1742486797038,0.00046373,84733.0,84732.0,2.41121403]
[1742486797734,0.00146373,84733.0,84732.0,2.41121403]
[1742486798450,0.00046373,84733.0,84732.0,2.41121403]
[1742486798829,0.00146373,84733.0,84732.0,2.41121403]
[1742486799028,0.00146373,84733.0,84732.0,2.42575488]
[1742486799880,0.00246373,84733.0,84732.0,2.42875488]
[1742486800066,7.3e-07,84733.0,84732.0,2.45875488]
[1742486800272,7.3e-07,84733.0,84732.0,2.45375488]